[Event "Titled Tuesday Blitz March 07 Early 2023"]
[White "Zahid, Sanatan"]
[Black "Krstulovic, Alex"]
[WhiteFideId "10201963"]
[BlackFideId "760056"]
[WhiteElo "1865"]
[BlackElo "2311"]
[Result "0-1"]
[Round "03"]
[TimeControl "180+2"]
[Date "2023.03.07"]
[WhiteClock "0:00:18"]
[BlackClock "0:00:23"]

1. d4 {[%clk 0:03:00]}  Nf6 {[%clk 0:02:59]} 2. Nc3 {[%clk 0:03:01]}  d5 {[%clk 0:02:58]} 3. Bf4 {[%clk 0:03:01]}  e6 {[%clk 0:02:57]} 4. Nb5 {[%clk 0:03:00]}  Na6 {[%clk 0:02:56]} 5. e3 {[%clk 0:03:00]}  c6 {[%clk 0:02:57]} 6. Nc3 {[%clk 0:03:00]}  Bb4 {[%clk 0:02:57]} 7. Bxa6 {[%clk 0:03:00]}  bxa6 {[%clk 0:02:58]} 8. Ne2 {[%clk 0:03:00]}  Nh5 {[%clk 0:02:53]} 9. a3 {[%clk 0:02:56]}  Be7 {[%clk 0:02:50]} 10. Be5 {[%clk 0:02:54]}  f6 {[%clk 0:02:49]} 11. Bg3 {[%clk 0:02:53]}  g6 {[%clk 0:02:46]} 12. Nf4 {[%clk 0:02:52]}  Nxf4 {[%clk 0:02:44]} 13. Bxf4 {[%clk 0:02:52]}  c5 {[%clk 0:02:44]} 14. h4 {[%clk 0:02:50]}  Kf7 {[%clk 0:02:24]} 15. Qf3 {[%clk 0:02:43]}  cxd4 {[%clk 0:02:16]} 16. exd4 {[%clk 0:02:41]}  Qb6 {[%clk 0:02:17]} 17. O-O-O {[%clk 0:02:39]}  Bd7 {[%clk 0:02:16]} 18. h5 {[%clk 0:02:13]}  g5 {[%clk 0:02:11]} 19. Bg3 {[%clk 0:02:12]}  Rhc8 {[%clk 0:02:10]} 20. Rhe1 {[%clk 0:02:11]}  Qa5 {[%clk 0:01:12]} 21. Re3 {[%clk 0:02:02]}  Rc6 {[%clk 0:01:08]} 22. Nb1 {[%clk 0:01:48]}  Rac8 {[%clk 0:01:06]} 23. c3 {[%clk 0:01:48]}  Rb6 {[%clk 0:01:04]} 24. Rde1 {[%clk 0:01:43]}  Qb5 {[%clk 0:00:58]} 25. Qe2 {[%clk 0:01:40]}  Qb3 {[%clk 0:00:49]} 26. Qc2 {[%clk 0:01:37]}  Qxc2+ {[%clk 0:00:49]} 27. Kxc2 {[%clk 0:01:38]}  Ba4+ {[%clk 0:00:50]} 28. Kc1 {[%clk 0:01:38]}  Rcc6 {[%clk 0:00:36]} 29. f4 {[%clk 0:01:36]}  f5 {[%clk 0:00:34]} 30. Nd2 {[%clk 0:01:27]}  g4 {[%clk 0:00:34]} 31. Rh1 {[%clk 0:01:26]}  h6 {[%clk 0:00:32]} 32. Bh4 {[%clk 0:01:24]}  Bf8 {[%clk 0:00:32]} 33. Rhe1 {[%clk 0:01:18]}  a5 {[%clk 0:00:30]} 34. g3 {[%clk 0:01:13]}  Rc8 {[%clk 0:00:29]} 35. R3e2 {[%clk 0:01:03]}  Rxc3+ {[%clk 0:00:28]} 36. Kb1 {[%clk 0:00:56]}  Bxa3 {[%clk 0:00:20]} 37. Nf1 {[%clk 0:00:53]}  Rcb3 {[%clk 0:00:19]} 38. Re3 {[%clk 0:00:36]}  Bxb2 {[%clk 0:00:12]} 39. Rxb3 {[%clk 0:00:27]}  Rxb3 {[%clk 0:00:13]} 40. Ka2 {[%clk 0:00:16]}  Bxd4 {[%clk 0:00:10]} 41. Rc1 {[%clk 0:00:16]}  Bc3 {[%clk 0:00:08]} 42. Ne3 {[%clk 0:00:13]}  d4 {[%clk 0:00:08]} 43. Nc4 {[%clk 0:00:14]}  Bc6 {[%clk 0:00:07]} 44. Ne5+ {[%clk 0:00:14]}  Ke8 {[%clk 0:00:07]} 45. Nxc6 {[%clk 0:00:15]}  Rb6 {[%clk 0:00:07]} 46. Nxd4 {[%clk 0:00:14]}  Bxd4 {[%clk 0:00:07]} 47. Rc8+ {[%clk 0:00:15]}  Kf7 {[%clk 0:00:08]} 48. Rc7+ {[%clk 0:00:15]}  Kg8 {[%clk 0:00:08]} 49. Ka3 {[%clk 0:00:15]}  Bg7 {[%clk 0:00:07]} 50. Rc8+ {[%clk 0:00:15]}  Kh7 {[%clk 0:00:07]} 51. Rc7 {[%clk 0:00:16]}  Kg8 {[%clk 0:00:08]} 52. Ka4 {[%clk 0:00:16]}  Rd6 {[%clk 0:00:07]} 53. Kxa5 {[%clk 0:00:14]}  e5 {[%clk 0:00:06]} 54. Rc5 {[%clk 0:00:12]}  exf4 {[%clk 0:00:06]} 55. gxf4 {[%clk 0:00:12]}  Bf6 {[%clk 0:00:07]} 56. Be1 {[%clk 0:00:09]}  Kf7 {[%clk 0:00:07]} 57. Rxf5 {[%clk 0:00:09]}  Ke6 {[%clk 0:00:07]} 58. Rc5 {[%clk 0:00:09]}  Rd5 {[%clk 0:00:08]} 59. Kb5 {[%clk 0:00:05]}  Rxc5+ {[%clk 0:00:08]} 60. Kxc5 {[%clk 0:00:06]}  Kf5 {[%clk 0:00:09]} 61. Bg3 {[%clk 0:00:05]}  Be7+ {[%clk 0:00:09]} 62. Kd5 {[%clk 0:00:05]}  a5 {[%clk 0:00:09]} 63. Be1 {[%clk 0:00:05]}  a4 {[%clk 0:00:10]} 64. Bd2 {[%clk 0:00:06]}  a3 {[%clk 0:00:10]} 65. Bc1 {[%clk 0:00:06]}  a2 {[%clk 0:00:11]} 66. Bb2 {[%clk 0:00:06]}  Bf6 {[%clk 0:00:11]} 67. Be5 {[%clk 0:00:06]}  Bxe5 {[%clk 0:00:11]} 68. fxe5 {[%clk 0:00:06]}  a1=Q {[%clk 0:00:12]} 69. e6 {[%clk 0:00:07]}  Qe5+ {[%clk 0:00:13]} 70. Kc6 {[%clk 0:00:08]}  Qxe6+ {[%clk 0:00:13]} 71. Kc7 {[%clk 0:00:09]}  Qf6 {[%clk 0:00:14]} 72. Kb7 {[%clk 0:00:09]}  Qg5 {[%clk 0:00:15]} 73. Ka7 {[%clk 0:00:10]}  g3 {[%clk 0:00:16]} 74. Kb7 {[%clk 0:00:11]}  g2 {[%clk 0:00:17]} 75. Ka7 {[%clk 0:00:12]}  Qxh5 {[%clk 0:00:17]} 76. Ka8 {[%clk 0:00:13]}  Qg5 {[%clk 0:00:18]} 77. Kb7 {[%clk 0:00:14]}  h5 {[%clk 0:00:19]} 78. Kb8 {[%clk 0:00:15]}  h4 {[%clk 0:00:20]} 79. Ka8 {[%clk 0:00:16]}  h3 {[%clk 0:00:21]} 80. Kb8 {[%clk 0:00:16]}  Qg7 {[%clk 0:00:21]} 81. Kc8 {[%clk 0:00:17]}  h2 {[%clk 0:00:21]} 82. Kb8 {[%clk 0:00:17]}  h1=Q {[%clk 0:00:22]} 83. Kc8 {[%clk 0:00:18]}  g1=Q {[%clk 0:00:22]} 84. Kd8 {[%clk 0:00:18]}  Qa8# {[%clk 0:00:23]} 0-1


[Site "https://www.chess.com"]

[Event "Titled Tuesday Blitz March 07 Early 2023"]
[White "Kislov, Oleg"]
[Black "Real_OceanStorm"]
[WhiteFideId "13503774"]
[WhiteElo "2186"]
[BlackElo "2774"]
[Result "1-0"]
[Round "03"]
[TimeControl "180+2"]
[Date "2023.03.07"]
[WhiteClock "0:00:09"]
[BlackClock "0:00:02"]

1. e4 {[%clk 0:03:00]}  d5 {[%clk 0:02:58]} 2. exd5 {[%clk 0:03:00]}  Qxd5 {[%clk 0:02:58]} 3. Nc3 {[%clk 0:03:00]}  Qa5 {[%clk 0:02:58]} 4. d4 {[%clk 0:03:00]}  c6 {[%clk 0:02:54]} 5. Nf3 {[%clk 0:02:59]}  Nf6 {[%clk 0:02:54]} 6. Ne5 {[%clk 0:02:54]}  Bf5 {[%clk 0:02:48]} 7. Bf4 {[%clk 0:02:51]}  e6 {[%clk 0:02:47]} 8. Bd3 {[%clk 0:02:22]}  Bb4 {[%clk 0:02:34]} 9. O-O {[%clk 0:02:03]}  O-O {[%clk 0:02:19]} 10. Bxf5 {[%clk 0:02:01]}  exf5 {[%clk 0:02:20]} 11. Ne2 {[%clk 0:01:54]}  Nd5 {[%clk 0:02:07]} 12. c3 {[%clk 0:01:49]}  Nxf4 {[%clk 0:01:33]} 13. Nxf4 {[%clk 0:01:49]}  Bd6 {[%clk 0:01:33]} 14. Re1 {[%clk 0:01:47]}  Qc7 {[%clk 0:01:32]} 15. Qd3 {[%clk 0:01:18]}  g6 {[%clk 0:01:10]} 16. Qf3 {[%clk 0:00:55]}  Nd7 {[%clk 0:00:42]} 17. Nxd7 {[%clk 0:00:51]}  Qxd7 {[%clk 0:00:42]} 18. Nd3 {[%clk 0:00:50]}  Rae8 {[%clk 0:00:39]} 19. g3 {[%clk 0:00:48]}  h5 {[%clk 0:00:31]} 20. h4 {[%clk 0:00:47]}  Kg7 {[%clk 0:00:28]} 21. Kg2 {[%clk 0:00:47]}  a5 {[%clk 0:00:24]} 22. b3 {[%clk 0:00:34]}  b6 {[%clk 0:00:12]} 23. Rxe8 {[%clk 0:00:30]}  Rxe8 {[%clk 0:00:12]} 24. Re1 {[%clk 0:00:31]}  Rxe1 {[%clk 0:00:12]} 25. Nxe1 {[%clk 0:00:32]}  Qe8 {[%clk 0:00:12]} 26. Qe3 {[%clk 0:00:31]}  Qxe3 {[%clk 0:00:07]} 27. fxe3 {[%clk 0:00:32]}  Kf6 {[%clk 0:00:07]} 28. Kf3 {[%clk 0:00:31]}  Bb8 {[%clk 0:00:07]} 29. Nd3 {[%clk 0:00:30]}  Bc7 {[%clk 0:00:07]} 30. Nf4 {[%clk 0:00:27]}  b5 {[%clk 0:00:03]} 31. e4 {[%clk 0:00:22]}  fxe4+ {[%clk 0:00:02]} 32. Kxe4 {[%clk 0:00:23]}  b4 {[%clk 0:00:03]} 33. c4 {[%clk 0:00:20]}  Bd6 {[%clk 0:00:02]} 34. d5 {[%clk 0:00:12]}  c5 {[%clk 0:00:02]} 35. Ne2 {[%clk 0:00:12]}  Bc7 {[%clk 0:00:02]} 36. Nf4 {[%clk 0:00:10]}  Ke7 {[%clk 0:00:02]} 37. Ne2 {[%clk 0:00:09]}  Bd6 {[%clk 0:00:02]} 38. Kf3 {[%clk 0:00:08]}  Be5 {[%clk 0:00:03]} 39. Ke4 {[%clk 0:00:09]}  Kd6 {[%clk 0:00:03]} 40. Nf4 {[%clk 0:00:08]}  Bxf4 {[%clk 0:00:02]} 41. Kxf4 {[%clk 0:00:08]}  f6 {[%clk 0:00:03]} 42. Ke4 {[%clk 0:00:05]}  Ke7 {[%clk 0:00:03]} 43. Kf4 {[%clk 0:00:06]}  Kd7 {[%clk 0:00:03]} 44. g4 {[%clk 0:00:05]}  hxg4 {[%clk 0:00:04]} 45. Kxg4 {[%clk 0:00:06]}  Kc7 {[%clk 0:00:04]} 46. h5 {[%clk 0:00:06]}  gxh5+ {[%clk 0:00:03]} 47. Kxh5 {[%clk 0:00:06]}  Kd6 {[%clk 0:00:04]} 48. Kg4 {[%clk 0:00:06]}  Ke5 {[%clk 0:00:04]} 49. Kf3 {[%clk 0:00:06]}  Kf5 {[%clk 0:00:05]} 50. Ke3 {[%clk 0:00:06]}  Ke5 {[%clk 0:00:05]} 51. Kf3 {[%clk 0:00:06]}  Kf5 {[%clk 0:00:04]} 52. Kg3 {[%clk 0:00:07]}  Ke5 {[%clk 0:00:05]} 53. Kg4 {[%clk 0:00:07]}  f5+ {[%clk 0:00:04]} 54. Kf3 {[%clk 0:00:06]}  f4 {[%clk 0:00:02]} 55. Kg2 {[%clk 0:00:06]}  Kf6 {[%clk 0:00:02]} 56. Kf2 {[%clk 0:00:06]}  Kg5 {[%clk 0:00:02]} 57. Kf3 {[%clk 0:00:06]}  Kf5 {[%clk 0:00:03]} 58. d6 {[%clk 0:00:06]}  Ke6 {[%clk 0:00:03]} 59. Kxf4 {[%clk 0:00:07]}  Kxd6 {[%clk 0:00:03]} 60. Kf5 {[%clk 0:00:07]}  Kd7 {[%clk 0:00:04]} 61. Ke5 {[%clk 0:00:08]}  Kc6 {[%clk 0:00:04]} 62. Ke6 {[%clk 0:00:08]}  Kc7 {[%clk 0:00:03]} 63. Kd5 {[%clk 0:00:08]}  Kb6 {[%clk 0:00:03]} 64. Kd6 {[%clk 0:00:09]}  a4 {[%clk 0:00:03]} 65. Kd5 {[%clk 0:00:09]}  Ka5 {[%clk 0:00:03]} 66. Kxc5 {[%clk 0:00:09]}  axb3 {[%clk 0:00:02]} 67. axb3 {[%clk 0:00:09]}  Ka6 {[%clk 0:00:02]} 68. Kxb4 {[%clk 0:00:09]} 1-0


[Site "https://www.chess.com"]

[Event "Titled Tuesday Blitz March 07 Early 2023"]
[White "Nazari, Arad"]
[Black "Rodchenkov, Sergey D."]
[WhiteFideId "12577324"]
[BlackFideId "4168712"]
[WhiteElo "2313"]
[BlackElo "2277"]
[Result "1-0"]
[Round "03"]
[TimeControl "180+2"]
[Date "2023.03.07"]
[WhiteClock "0:00:58"]
[BlackClock "0:00:05"]

1. e4 {[%clk 0:03:00]}  c5 {[%clk 0:03:00]} 2. Nf3 {[%clk 0:03:01]}  d6 {[%clk 0:03:00]} 3. Bb5+ {[%clk 0:03:01]}  Nd7 {[%clk 0:03:00]} 4. d4 {[%clk 0:02:59]}  cxd4 {[%clk 0:03:01]} 5. Qxd4 {[%clk 0:03:00]}  a6 {[%clk 0:03:02]} 6. Bxd7+ {[%clk 0:03:00]}  Bxd7 {[%clk 0:03:03]} 7. O-O {[%clk 0:03:01]}  Nf6 {[%clk 0:03:02]} 8. c4 {[%clk 0:03:00]}  e6 {[%clk 0:02:53]} 9. Nc3 {[%clk 0:02:58]}  Be7 {[%clk 0:02:53]} 10. b3 {[%clk 0:02:58]}  O-O {[%clk 0:02:53]} 11. a4 {[%clk 0:02:59]}  h6 {[%clk 0:02:49]} 12. Ba3 {[%clk 0:02:59]}  Bc6 {[%clk 0:02:38]} 13. Rfd1 {[%clk 0:02:56]}  Qa5 {[%clk 0:02:17]} 14. b4 {[%clk 0:02:25]}  Qh5 {[%clk 0:02:04]} 15. b5 {[%clk 0:02:24]}  axb5 {[%clk 0:01:38]} 16. axb5 {[%clk 0:02:25]}  e5 {[%clk 0:01:23]} 17. Qd3 {[%clk 0:02:11]}  Bd7 {[%clk 0:00:21]} 18. h3 {[%clk 0:01:49]}  Rxa3 {[%clk 0:00:12]} 19. Rxa3 {[%clk 0:01:47]}  d5 {[%clk 0:00:12]} 20. Ra7 {[%clk 0:01:30]}  d4 {[%clk 0:00:11]} 21. Nd5 {[%clk 0:01:27]}  Nxd5 {[%clk 0:00:11]} 22. cxd5 {[%clk 0:01:27]}  Bd6 {[%clk 0:00:11]} 23. Rxb7 {[%clk 0:01:26]}  Bc8 {[%clk 0:00:11]} 24. Rb6 {[%clk 0:01:26]}  Bc7 {[%clk 0:00:10]} 25. Rc6 {[%clk 0:01:26]}  Bd8 {[%clk 0:00:10]} 26. b6 {[%clk 0:01:26]}  Bb7 {[%clk 0:00:10]} 27. Rb1 {[%clk 0:01:25]}  f5 {[%clk 0:00:10]} 28. Nxe5 {[%clk 0:01:23]}  fxe4 {[%clk 0:00:09]} 29. Qxe4 {[%clk 0:01:23]}  Bf6 {[%clk 0:00:09]} 30. Ng4 {[%clk 0:01:20]}  Bh4 {[%clk 0:00:07]} 31. Qg6 {[%clk 0:01:16]}  Qxd5 {[%clk 0:00:06]} 32. Qe6+ {[%clk 0:01:13]}  Qxe6 {[%clk 0:00:05]} 33. Rxe6 {[%clk 0:01:13]}  h5 {[%clk 0:00:05]} 34. g3 {[%clk 0:01:07]}  Bg5 {[%clk 0:00:05]} 35. Ne5 {[%clk 0:01:03]}  h4 {[%clk 0:00:05]} 36. Rg6 {[%clk 0:00:56]}  Bf6 {[%clk 0:00:05]} 37. Nd7 {[%clk 0:00:56]}  Rf7 {[%clk 0:00:03]} 38. Nxf6+ {[%clk 0:00:56]}  Rxf6 {[%clk 0:00:04]} 39. Rxf6 {[%clk 0:00:57]}  gxf6 {[%clk 0:00:05]} 40. gxh4 {[%clk 0:00:58]} 1-0


[Site "https://www.chess.com"]

[Event "Titled Tuesday Blitz March 07 Early 2023"]
[White "Heinemann, Josefine"]
[Black "Aradhya, Garg"]
[WhiteFideId "12900460"]
[BlackFideId "25006746"]
[WhiteElo "2342"]
[BlackElo "2263"]
[Result "0-1"]
[Round "03"]
[TimeControl "180+2"]
[Date "2023.03.07"]
[WhiteClock "0:00:05"]
[BlackClock "0:00:12"]

1. e4 {[%clk 0:03:00]}  e5 {[%clk 0:02:59]} 2. Nf3 {[%clk 0:03:00]}  Nc6 {[%clk 0:02:59]} 3. Bb5 {[%clk 0:02:59]}  a6 {[%clk 0:02:59]} 4. Ba4 {[%clk 0:02:58]}  Nge7 {[%clk 0:03:00]} 5. Nc3 {[%clk 0:02:56]}  d6 {[%clk 0:03:00]} 6. O-O {[%clk 0:02:31]}  Bd7 {[%clk 0:02:59]} 7. a3 {[%clk 0:02:29]}  g6 {[%clk 0:02:57]} 8. d3 {[%clk 0:02:29]}  Bg7 {[%clk 0:02:56]} 9. Be3 {[%clk 0:02:25]}  O-O {[%clk 0:02:54]} 10. h3 {[%clk 0:02:25]}  Nd4 {[%clk 0:02:18]} 11. Bxd7 {[%clk 0:02:22]}  Qxd7 {[%clk 0:02:19]} 12. Bxd4 {[%clk 0:02:21]}  exd4 {[%clk 0:02:18]} 13. Ne2 {[%clk 0:02:22]}  c5 {[%clk 0:02:06]} 14. Qd2 {[%clk 0:02:08]}  d5 {[%clk 0:02:05]} 15. Rae1 {[%clk 0:01:45]}  dxe4 {[%clk 0:01:54]} 16. dxe4 {[%clk 0:01:43]}  Nc6 {[%clk 0:01:53]} 17. b3 {[%clk 0:01:40]}  Rfe8 {[%clk 0:01:47]} 18. Nc1 {[%clk 0:01:37]}  Re7 {[%clk 0:01:43]} 19. Nd3 {[%clk 0:01:35]}  b6 {[%clk 0:01:43]} 20. a4 {[%clk 0:01:34]}  a5 {[%clk 0:01:23]} 21. Nb2 {[%clk 0:01:26]}  Rae8 {[%clk 0:01:23]} 22. Nc4 {[%clk 0:01:26]}  Qc7 {[%clk 0:01:23]} 23. e5 {[%clk 0:01:03]}  Nxe5 {[%clk 0:01:19]} 24. Nfxe5 {[%clk 0:01:03]}  Bxe5 {[%clk 0:01:19]} 25. Nxe5 {[%clk 0:01:03]}  Rxe5 {[%clk 0:01:19]} 26. Rxe5 {[%clk 0:01:03]}  Qxe5 {[%clk 0:01:19]} 27. g3 {[%clk 0:00:46]}  h5 {[%clk 0:01:18]} 28. h4 {[%clk 0:00:45]}  Qe4 {[%clk 0:01:02]} 29. Kh2 {[%clk 0:00:33]}  Kg7 {[%clk 0:01:00]} 30. Kg1 {[%clk 0:00:28]}  Re6 {[%clk 0:00:53]} 31. Rd1 {[%clk 0:00:26]}  Qe2 {[%clk 0:00:37]} 32. Kg2 {[%clk 0:00:20]}  Qe4+ {[%clk 0:00:36]} 33. Kg1 {[%clk 0:00:20]}  f6 {[%clk 0:00:36]} 34. c3 {[%clk 0:00:13]}  Qf3 {[%clk 0:00:27]} 35. cxd4 {[%clk 0:00:07]}  Re2 {[%clk 0:00:27]} 36. Qf4 {[%clk 0:00:07]}  Rxf2 {[%clk 0:00:25]} 37. Qxf3 {[%clk 0:00:07]}  Rxf3 {[%clk 0:00:26]} 38. Kg2 {[%clk 0:00:07]}  Rxb3 {[%clk 0:00:25]} 39. dxc5 {[%clk 0:00:08]}  bxc5 {[%clk 0:00:25]} 40. Rd7+ {[%clk 0:00:08]}  Kh6 {[%clk 0:00:25]} 41. Rd6 {[%clk 0:00:08]}  f5 {[%clk 0:00:23]} 42. Rc6 {[%clk 0:00:08]}  Rb4 {[%clk 0:00:23]} 43. Rxc5 {[%clk 0:00:08]}  Rxa4 {[%clk 0:00:24]} 44. Rc7 {[%clk 0:00:08]}  Ra1 {[%clk 0:00:24]} 45. Kh3 {[%clk 0:00:08]}  Ra2 {[%clk 0:00:16]} 46. Ra7 {[%clk 0:00:07]}  a4 {[%clk 0:00:16]} 47. Rb7 {[%clk 0:00:06]}  a3 {[%clk 0:00:16]} 48. Ra7 {[%clk 0:00:06]}  Ra1 {[%clk 0:00:17]} 49. Kg2 {[%clk 0:00:05]}  a2 {[%clk 0:00:17]} 50. Kh2 {[%clk 0:00:06]}  g5 {[%clk 0:00:17]} 51. Ra6+ {[%clk 0:00:06]}  Kg7 {[%clk 0:00:17]} 52. hxg5 {[%clk 0:00:07]}  h4 {[%clk 0:00:18]} 53. gxh4 {[%clk 0:00:05]}  f4 {[%clk 0:00:19]} 54. h5 {[%clk 0:00:06]}  f3 {[%clk 0:00:19]} 55. Ra7+ {[%clk 0:00:06]}  Kf8 {[%clk 0:00:19]} 56. h6 {[%clk 0:00:06]}  f2 {[%clk 0:00:19]} 57. h7 {[%clk 0:00:07]}  Rh1+ {[%clk 0:00:19]} 58. Kxh1 {[%clk 0:00:07]}  f1=Q+ {[%clk 0:00:19]} 59. Kh2 {[%clk 0:00:08]}  a1=Q {[%clk 0:00:14]} 60. Ra8+ {[%clk 0:00:08]}  Kf7 {[%clk 0:00:12]} 61. h8=N+ {[%clk 0:00:05]}  Ke6 {[%clk 0:00:11]} 62. Rxa1 {[%clk 0:00:04]}  Qxa1 {[%clk 0:00:12]} 63. g6 {[%clk 0:00:05]}  Qxh8+ {[%clk 0:00:12]} 0-1


[Site "https://www.chess.com"]

[Event "Titled Tuesday Blitz March 07 Early 2023"]
[White "Slade, Theodore"]
[Black "Klabis, Rokas"]
[WhiteFideId "426547"]
[BlackFideId "12805246"]
[WhiteElo "1964"]
[BlackElo "2288"]
[Result "1/2-1/2"]
[Round "03"]
[TimeControl "180+2"]
[Date "2023.03.07"]
[WhiteClock "0:00:17"]
[BlackClock "0:00:28"]

1. d4 {[%clk 0:03:00]}  Nf6 {[%clk 0:02:59]} 2. c4 {[%clk 0:03:01]}  e6 {[%clk 0:02:59]} 3. g3 {[%clk 0:03:01]}  Bb4+ {[%clk 0:02:58]} 4. Bd2 {[%clk 0:03:01]}  Qe7 {[%clk 0:02:57]} 5. Bg2 {[%clk 0:03:01]}  O-O {[%clk 0:02:57]} 6. Nf3 {[%clk 0:03:01]}  Nc6 {[%clk 0:02:57]} 7. O-O {[%clk 0:03:01]}  Bxd2 {[%clk 0:02:56]} 8. Qxd2 {[%clk 0:03:02]}  d5 {[%clk 0:02:56]} 9. Qc2 {[%clk 0:02:58]}  Rd8 {[%clk 0:02:54]} 10. Nbd2 {[%clk 0:02:56]}  dxc4 {[%clk 0:02:49]} 11. Qxc4 {[%clk 0:02:55]}  e5 {[%clk 0:02:47]} 12. dxe5 {[%clk 0:02:37]}  Nxe5 {[%clk 0:02:46]} 13. Qc2 {[%clk 0:02:35]}  c6 {[%clk 0:02:45]} 14. Nxe5 {[%clk 0:02:33]}  Qxe5 {[%clk 0:02:45]} 15. Nf3 {[%clk 0:02:30]}  Qh5 {[%clk 0:02:38]} 16. Rfd1 {[%clk 0:02:23]}  Be6 {[%clk 0:02:38]} 17. a3 {[%clk 0:02:18]}  h6 {[%clk 0:02:37]} 18. Rd4 {[%clk 0:02:13]}  Bd5 {[%clk 0:02:30]} 19. Rad1 {[%clk 0:02:12]}  Re8 {[%clk 0:02:30]} 20. b4 {[%clk 0:02:05]}  Re4 {[%clk 0:02:09]} 21. a4 {[%clk 0:01:54]}  Rae8 {[%clk 0:02:08]} 22. Rxe4 {[%clk 0:01:53]}  Bxe4 {[%clk 0:02:08]} 23. Qd2 {[%clk 0:01:48]}  Bd5 {[%clk 0:02:03]} 24. Nd4 {[%clk 0:01:35]}  Ng4 {[%clk 0:01:40]} 25. h3 {[%clk 0:01:32]}  Nf6 {[%clk 0:01:39]} 26. Bxd5 {[%clk 0:01:20]}  Nxd5 {[%clk 0:01:39]} 27. Kg2 {[%clk 0:01:10]}  Nb6 {[%clk 0:01:10]} 28. a5 {[%clk 0:01:08]}  Nc4 {[%clk 0:01:05]} 29. Qc2 {[%clk 0:01:02]}  Ne5 {[%clk 0:00:59]} 30. Qf5 {[%clk 0:00:59]}  Qg6 {[%clk 0:00:32]} 31. Qxg6 {[%clk 0:00:58]}  Nxg6 {[%clk 0:00:33]} 32. Nf5 {[%clk 0:00:40]}  Re5 {[%clk 0:00:32]} 33. Rd8+ {[%clk 0:00:38]}  Kh7 {[%clk 0:00:33]} 34. Nd4 {[%clk 0:00:35]}  c5 {[%clk 0:00:30]} 35. bxc5 {[%clk 0:00:34]}  Rxc5 {[%clk 0:00:30]} 36. Rd7 {[%clk 0:00:33]}  Rxa5 {[%clk 0:00:28]} 37. Rxb7 {[%clk 0:00:34]}  Kg8 {[%clk 0:00:23]} 38. Nc6 {[%clk 0:00:33]}  Ra2 {[%clk 0:00:20]} 39. Ne7+ {[%clk 0:00:29]}  Nxe7 {[%clk 0:00:20]} 40. Rxe7 {[%clk 0:00:30]}  a5 {[%clk 0:00:20]} 41. e3 {[%clk 0:00:29]}  a4 {[%clk 0:00:21]} 42. Ra7 {[%clk 0:00:29]}  g6 {[%clk 0:00:21]} 43. g4 {[%clk 0:00:29]}  Kg7 {[%clk 0:00:22]} 44. Kf3 {[%clk 0:00:29]}  Kf6 {[%clk 0:00:22]} 45. Ra5 {[%clk 0:00:29]}  a3 {[%clk 0:00:22]} 46. h4 {[%clk 0:00:27]}  Ra1 {[%clk 0:00:23]} 47. h5 {[%clk 0:00:27]}  gxh5 {[%clk 0:00:23]} 48. Rxh5 {[%clk 0:00:27]}  Kg6 {[%clk 0:00:23]} 49. Ra5 {[%clk 0:00:27]}  a2 {[%clk 0:00:23]} 50. Kf4 {[%clk 0:00:27]}  f6 {[%clk 0:00:22]} 51. Ra6 {[%clk 0:00:27]}  Kf7 {[%clk 0:00:23]} 52. f3 {[%clk 0:00:25]}  Ke7 {[%clk 0:00:23]} 53. e4 {[%clk 0:00:23]}  Kd7 {[%clk 0:00:23]} 54. Kf5 {[%clk 0:00:18]}  Rf1 {[%clk 0:00:23]} 55. Rxa2 {[%clk 0:00:17]}  Rxf3+ {[%clk 0:00:23]} 56. Kg6 {[%clk 0:00:18]}  Rf4 {[%clk 0:00:24]} 57. Ra6 {[%clk 0:00:13]}  Ke7 {[%clk 0:00:24]} 58. Ra7+ {[%clk 0:00:06]}  Ke6 {[%clk 0:00:24]} 59. Ra6+ {[%clk 0:00:06]}  Ke5 {[%clk 0:00:24]} 60. Ra5+ {[%clk 0:00:05]}  Kxe4 {[%clk 0:00:24]} 61. Kxh6 {[%clk 0:00:05]}  Rxg4 {[%clk 0:00:23]} 62. Kh5 {[%clk 0:00:05]}  Rg1 {[%clk 0:00:21]} 63. Ra4+ {[%clk 0:00:05]}  Ke5 {[%clk 0:00:18]} 64. Ra5+ {[%clk 0:00:05]}  Ke6 {[%clk 0:00:16]} 65. Ra6+ {[%clk 0:00:06]}  Kf7 {[%clk 0:00:17]} 66. Ra7+ {[%clk 0:00:06]}  Kg8 {[%clk 0:00:17]} 67. Ra8+ {[%clk 0:00:06]}  Kh7 {[%clk 0:00:17]} 68. Ra7+ {[%clk 0:00:07]}  Rg7 {[%clk 0:00:15]} 69. Rxg7+ {[%clk 0:00:07]}  Kxg7 {[%clk 0:00:16]} 70. Kg4 {[%clk 0:00:08]}  Kg6 {[%clk 0:00:17]} 71. Kf4 {[%clk 0:00:08]}  f5 {[%clk 0:00:17]} 72. Kf3 {[%clk 0:00:09]}  Kf6 {[%clk 0:00:18]} 73. Kf4 {[%clk 0:00:10]}  Ke6 {[%clk 0:00:18]} 74. Kf3 {[%clk 0:00:10]}  Ke5 {[%clk 0:00:19]} 75. Ke3 {[%clk 0:00:11]}  f4+ {[%clk 0:00:20]} 76. Kf3 {[%clk 0:00:11]}  Kf5 {[%clk 0:00:21]} 77. Kf2 {[%clk 0:00:12]}  Ke4 {[%clk 0:00:22]} 78. Ke2 {[%clk 0:00:12]}  Kd4 {[%clk 0:00:22]} 79. Kf3 {[%clk 0:00:13]}  Ke5 {[%clk 0:00:23]} 80. Kf2 {[%clk 0:00:14]}  Ke4 {[%clk 0:00:23]} 81. Ke2 {[%clk 0:00:14]}  f3+ {[%clk 0:00:24]} 82. Kf2 {[%clk 0:00:14]}  Kf4 {[%clk 0:00:25]} 83. Kf1 {[%clk 0:00:15]}  Ke3 {[%clk 0:00:26]} 84. Ke1 {[%clk 0:00:15]}  Ke4 {[%clk 0:00:26]} 85. Kf2 {[%clk 0:00:16]}  Kf4 {[%clk 0:00:27]} 86. Kf1 {[%clk 0:00:16]}  Kg4 {[%clk 0:00:28]} 87. Kf2 {[%clk 0:00:17]}  Kf4 {[%clk 0:00:28]} 1/2-1/2


[Site "https://www.chess.com"]

[Event "Titled Tuesday Blitz March 07 Early 2023"]
[White "Dubov, Daniil"]
[Black "Valgmae, Toomas"]
[WhiteFideId "24126055"]
[BlackFideId "4502523"]
[WhiteElo "2802"]
[BlackElo "2170"]
[Result "1-0"]
[Round "03"]
[TimeControl "180+2"]
[Date "2023.03.07"]
[WhiteClock "0:01:12"]
[BlackClock "0:00:57"]

1. Nf3 {[%clk 0:03:00]}  d5 {[%clk 0:03:00]} 2. g3 {[%clk 0:03:01]}  c6 {[%clk 0:03:00]} 3. Bg2 {[%clk 0:03:01]}  Nf6 {[%clk 0:03:01]} 4. O-O {[%clk 0:03:02]}  Bg4 {[%clk 0:03:01]} 5. d4 {[%clk 0:02:58]}  e6 {[%clk 0:03:00]} 6. c4 {[%clk 0:02:58]}  Nbd7 {[%clk 0:02:59]} 7. Ne5 {[%clk 0:02:54]}  Nxe5 {[%clk 0:02:56]} 8. dxe5 {[%clk 0:02:55]}  Nd7 {[%clk 0:02:57]} 9. h3 {[%clk 0:02:53]}  Bh5 {[%clk 0:02:56]} 10. cxd5 {[%clk 0:02:48]}  cxd5 {[%clk 0:02:53]} 11. f4 {[%clk 0:02:43]}  Bc5+ {[%clk 0:02:50]} 12. Kh2 {[%clk 0:02:43]}  O-O {[%clk 0:02:49]} 13. Nc3 {[%clk 0:02:43]}  Rc8 {[%clk 0:02:37]} 14. g4 {[%clk 0:02:39]}  Bg6 {[%clk 0:02:37]} 15. f5 {[%clk 0:02:35]}  exf5 {[%clk 0:02:37]} 16. gxf5 {[%clk 0:02:35]}  Bh5 {[%clk 0:02:35]} 17. Bf4 {[%clk 0:02:35]}  d4 {[%clk 0:02:26]} 18. Ne4 {[%clk 0:02:34]}  Bb6 {[%clk 0:02:26]} 19. Ng3 {[%clk 0:02:34]}  Qh4 {[%clk 0:02:22]} 20. Qd2 {[%clk 0:02:34]}  h6 {[%clk 0:02:17]} 21. Bxb7 {[%clk 0:01:57]}  Rce8 {[%clk 0:02:14]} 22. Nxh5 {[%clk 0:01:49]}  Qxh5 {[%clk 0:02:11]} 23. Bf3 {[%clk 0:01:49]}  Qxf5 {[%clk 0:02:09]} 24. Bg4 {[%clk 0:01:49]}  Qe4 {[%clk 0:01:48]} 25. Bxd7 {[%clk 0:01:48]}  Re7 {[%clk 0:01:49]} 26. Bg4 {[%clk 0:01:47]}  Bc7 {[%clk 0:01:48]} 27. Qd3 {[%clk 0:01:42]}  Qd5 {[%clk 0:01:42]} 28. Bf3 {[%clk 0:01:37]}  Qa5 {[%clk 0:01:34]} 29. Qxd4 {[%clk 0:01:36]}  Rxe5 {[%clk 0:01:33]} 30. b4 {[%clk 0:01:30]}  Qb5 {[%clk 0:01:03]} 31. a4 {[%clk 0:01:16]}  Rxe2+ {[%clk 0:00:58]} 32. Bxe2 {[%clk 0:01:11]}  Qxe2+ {[%clk 0:00:57]} 33. Rf2 {[%clk 0:01:12]} 1-0


[Site "https://www.chess.com"]